[Event "Mitropa Cup Open 2022"]
[Site "Corte"]
[Date "2022.05.08"]
[Round "9.6"]
[White "Sonis, Francesco"]
[Black "Kozak, Adam"]
[Result "1-0"]
[ECO "A37"]
[WhiteElo "2547"]
[BlackElo "2532"]
[Annotator "TA"]
[PlyCount "133"]
[EventDate "2022.04.30"]
[EventType "team-tourn"]
[EventCountry "FRA"]
[SourceTitle "playchess.com"]
[Source "ChessBase"]
[SourceQuality "1"]
[WhiteTeam "Italy"]
[BlackTeam "Hungary"]
[WhiteTeamCountry "ITA"]
[BlackTeamCountry "HUN"]
[TimeControl "40/5400+30:1800+30"]

{[%evp 15,133,8,27,11,25,21,19,18,19,23,18,11,26,25,40,28,30,29,40,21,20,0,0,0,0,-18,0,0,2,0,121,131,125,7,16,-16,0,-25,0,0,0,5,15,0,33,41,26,0,0,0,0,-58,128,142,138,14,15,15,30,6,167,167,167,167,149,52,12832,966,12832,1985,1796,1720,12841,12841,12838,774,719,727,652,646,2061,1942,1529,1231,1089,912,12831,12831,12831,12831,12815,12820,9921,6103,2095,1960,12842,12843,12843,12843,12844,12844,12845,12844,12845,12845,12845,12845,12848,12847,12847,12847,12848,12847,12848,12848,12849,12849,12850,5293]} 1. c4 {[%emt 0:01:52]} c5 {[%emt 0:04:53]} 2. Nc3 {[%emt 0:00:42]} Nc6 {[%emt 0:00:23]} 3. g3 {[%emt 0:00:20]} g6 {[%emt 0:01:59]} 4. Bg2 {[%emt 0:00:10]} Bg7 {[%emt 0:00:18]} 5. Nf3 {[%emt 0:00:08]} Rb8 {[%emt 0:09:04]} 6. O-O {[%emt 0:08:39]} d6 {[%emt 0:02:48]} 7. e3 {[%emt 0:00:09]} Nf6 {[%emt 0:08:09]} 8. d4 {[%emt 0:02:30]} O-O {[%emt 0:02:01]} 9. b3 {[%emt 0:07:21] E65: King's Indian: Fianchetto: 6...c5 7 0-0 without d5 by White.} Bg4 {[%emt 0:08:37]} 10. h3 {[%emt 0:09:43]} Bxf3 {[%emt 0:06:55]} 11. Bxf3 {[%emt 0:00:05] The position is equal.} Nd7 {[%emt 0:00:19][%cal Rc5d4]} 12. Ne2 {[%emt 0:01:00] [#]} e5 $146 {[%emt 0:14:40][%cal Re5d4]} ({Predecessor:} 12... Qb6 13. Bb2 Rbd8 14. Rb1 Rfe8 15. Bg2 a6 16. Qd2 Qa7 17. Rfd1 Rb8 18. Nf4 Rec8 19. dxc5 Qxc5 20. Bxg7 Kxg7 {½-½ (44) Puhlmann,R (2083)-Gazmaga,S (2158) Germany 2015}) 13. Bb2 {[%emt 0:00:08]} exd4 {[%emt 0:03:57]} 14. exd4 {[%emt 0:00:08]} Qf6 {[%emt 0:01:01][%csl LRd4,LRf3]} 15. Kg2 {[%emt 0:00:48]} (15. Bg4 Rfd8 $11) 15... Nxd4 {[%emt 0:03:14]} 16. Nxd4 {[%emt 0:03:17]} cxd4 {[%emt 0:00:24]} 17. Re1 {[%emt 0:03:06]} Nc5 {[%emt 0:02:38] Prevents Re4.} 18. Qd2 {[%emt 0:01:10]} b5 {[%emt 0:02:42]} 19. cxb5 {[%emt 0:05:51]} Rxb5 {[%emt 0:00:06]} 20. Qe2 {[%emt 0:03:59]} Rb6 {[%emt 0:04:12]} 21. Qc4 {[%emt 0:01:13]} a5 {[%emt 0:10:57]} 22. Rad1 {[%emt 0:03:04][%cal Rb2d4]} Qf5 {[%emt 0:04:47]} (22... Ne6 $11 {remains equal.}) 23. Bg4 $16 {[%emt 0:11:58][%mdl 1024] White has strong compensation.} (23. Bxd4 $6 Rb4 24. Bxg7 (24. Qc3 $2 Rxd4 25. Rxd4 Ne6 $19) 24... Rxc4 25. Bxf8 Re4 26. Bxd6 Rxe1 27. Rxe1 Nd3 28. Re8+ Kg7 $11) 23... Qg5 {[%emt 0:00:27]} 24. Bc1 {[%emt 0:00:20]} ({White must play} 24. Bxd4 $16 {Threatening Be3.} Bxd4 25. Qxd4) 24... Qd8 $11 {[%emt 0:01:35]} 25. Bd2 {[%emt 0:00:12]} Rb8 {[%emt 0:00:21][%cal Oc5e4]} (25... a4 $5) 26. h4 {[%emt 0:00:05]} h5 {[%emt 0:03:06]} (26... Ne4 $5) 27. Bf3 {[%emt 0:00:15]} Qb6 {[%emt 0:00:52]} 28. Bd5 {[%emt 0:01:08] next Re7 is good for White. This bishop pair is nice.} Qa7 {[%emt 0:02:46] Prevents Re7.} 29. Re2 {[%emt 0:05:54]} d3 {[%emt 0:00:14]} 30. Re3 {[%emt 0:00:10]} Bh6 {[%emt 0:00:29]} 31. Rf3 {[%emt 0:00:05]} (31. f4 $5 {[%cal Rd1e1]}) 31... Bxd2 {[%emt 0:00:06]} 32. Rxd2 {[%emt 0:00:03]} Qe7 $1 {[%emt 0:01:12]} 33. a3 {[%emt 0:04:19]} ({White should try} 33. Re3 $11 Qf6 34. Rf3) 33... Qe1 $2 {[%emt 0:00:52]} (33... Nxb3 $2 34. Qxd3 Kg7 35. Bxb3 $18) (33... Rxb3 $15 {stays ahead.} 34. Qf4 Rxa3) 34. Bxf7+ {[%emt 0:12:26]} Kg7 {[%emt 0:00:01]} (34... Kh7 $2 35. Rdxd3 Qe4 36. Rxd6 Qxc4 37. bxc4 $18) 35. b4 {[%emt 0:04:38]} axb4 $1 {[%emt 0:01:21] [#]} (35... Qxd2 36. Qd4+ Kh7 37. bxc5 $16) 36. axb4 {[%emt 0:00:01] Really sharp!} Nd7 {[%emt 0:00:33]} (36... Qxd2 37. Qd4+) 37. Rdxd3 {[%emt 0:02:52]} Ne5 $2 {[%emt 0:00:18]} (37... Rxb4 $11 38. Qc2 (38. Qe6 Qxe6 39. Bxe6 Rxf3 $11) 38... Rxf7 39. Rxf7+ Kxf7 40. Rf3+ Ke7 41. Re3+ Qxe3 42. fxe3 Ne5) 38. Qe6 $40 {[%emt 0:00:41][%mdl 128] Black is in trouble.} Qe4 {[%emt 0:00:42][%cal Rf8f7]} (38... Rxb4 $2 39. Qf6+ Kh6 40. Rde3 $1 Qxe3 41. Rxe3 $18) 39. Rde3 {[%emt 0:01:06]} Qg4 {[%emt 0:00:30][%cal Rf8f7]} 40. Qf6+ {[%emt 0:03:10]} (40. Rxe5 $16 {White wants to mate with Qf6+.} Qxe6 41. Rxe6 Rxf7 42. Rd3 (42. Rxd6 Rxb4 43. Rxf7+ Kxf7 $16)) 40... Kh7 $2 {[%emt 0:00:29][%mdl 8192]} (40... Kh6 $14 41. Rxe5 dxe5) 41. Qe7 {[%emt 0:30:59]} (41. Rxe5 $142 dxe5 42. Qe7 Qxb4 43. Bg8+ $1 {[%mdl 512]} Kxg8 44. Rxf8+ Rxf8 45. Qxb4) 41... Kh6 {[%emt 0:05:41]} 42. Rxe5 {[%emt 0:00:00]} dxe5 {[%emt 0:02:31]} 43. Rf6 {[%emt 0:00:00] White threatens f3 and mate. Active counter play!} Qe4+ {[%emt 0:04:10]} 44. Kh2 {[%emt 0:00:00] Qd6 would kill now.} Qc2 {[%emt 0:01:33]} 45. Rxg6+ {[%emt 0:00:00]} (45. Qxe5 $142 Rb6 {[#]} 46. Bxg6 $1 Qxf2+ 47. Rxf2 Rxf2+ 48. Kg1 Kxg6 49. Kxf2) 45... Qxg6 {[%emt 0:00:59]} 46. Bxg6 {[%emt 0:00:00]} Kxg6 {[%emt 0:00:10][%mdl 4096] Endgame KQ-KRR} 47. Qg5+ {[%emt 0:00:00]} Kh7 {[%emt 0:00:06]} 48. Qxh5+ {[%emt 0:00:00]} Kg8 {[%emt 0:00:06]} 49. Qg5+ {[%emt 0:00:00]} Kh7 {[%emt 0:00:07]} 50. Kg2 {[%emt 0:00:00]} Rf7 {[%emt 0:00:14]} 51. Qh5+ {[%emt 0:00:00]} Kg8 {[%emt 0:00:14]} 52. Qg6+ {[%emt 0:00:00]} Rg7 {[%emt 0:00:08]} 53. Qe6+ {[%emt 0:00:00]} Kh7 {[%emt 0:00:38]} 54. Qf5+ {[%emt 0:00:00]} Kg8 {[%emt 0:00:58]} 55. h5 {[%emt 0:00:00][%cal Bh4h5,Bh5h6][%mdl 32] Hoping for h6.} Rxb4 {[%emt 0:00:10]} 56. h6 {[%emt 0:00:00]} Rgb7 {[%emt 0:00:03]} 57. g4 {[%emt 0:00:00][%cal Bg3g4,Bg4g5][%mdl 32]} R4b6 {[%emt 0:01:51]} 58. g5 {[%emt 0:00:00]} Rf7 {[%emt 0:00:09]} 59. Qxe5 {[%emt 0:00:00]} Kh7 {[%emt 0:00:53]} 60. Qe4+ {[%emt 0:00:00]} Rg6 {[%emt 0:00:21]} 61. Kg3 {[%emt 0:00:00]} Kh8 {[%emt 0:00:14]} 62. f4 {[%emt 0:00:00][%cal Bf2f4,Bf4f5][%mdl 32]} ({Not} 62. Qxg6 Rf3+ 63. Kg4 Rf4+ 64. Kg3 Rf3+ 65. Kh2 (65. Kg4 Rf4+ 66. Kh5 Rh4+ 67. Kxh4 $11) 65... Rxf2+ 66. Kg1 Rf1+ 67. Kg2 Rf2+ 68. Kg3 Rf3+ 69. Kh4 Rf4+ 70. Kg3 Rf3+ 71. Kg4 Rf4+ 72. Kg3 Rf3+ $11) 62... Kh7 {[%emt 0:01:12]} 63. Kg4 {[%emt 0:00:00]} Kh8 {[%emt 0:00:06]} 64. f5 {[%emt 0:00:00]} Rg8 {[%emt 0:00:32]} 65. Qe5+ {[%emt 0:00:00]} Kh7 {[%emt 0:00:04]} 66. g6+ {[%emt 0:00:00]} Kxh6 {[%emt 0:00:15]} 67. Qh2+ {[%emt 0:00:00] Weighted Error Value: White=0.27 (precise) /Black=0.24 (precise)} 1-0

[Event "Mitropa Cup Open 2022"]
[Site "Corte"]
[Date "2022.05.08"]
[Round "9.7"]
[White "Sahidi, Samir"]
[Black "Gallagher, Joseph G."]
[Result "1-0"]
[ECO "E97"]
[WhiteElo "2459"]
[BlackElo "2441"]
[Annotator "TA"]
[PlyCount "75"]
[EventDate "2022.04.30"]
[EventType "team-tourn"]
[EventCountry "FRA"]
[SourceTitle "playchess.com"]
[Source "ChessBase"]
[SourceQuality "1"]
[WhiteTeam "Slovakia"]
[BlackTeam "Switzerland"]
[WhiteTeamCountry "SVK"]
[BlackTeamCountry "SUI"]
[TimeControl "40/5400+30:1800+30"]

{[%evp 20,75,37,32,47,16,5,12,13,20,18,16,38,16,22,15,14,18,19,15,11,0,0,0,43,8,52,53,65,45,61,57,57,76,103,26,76,12,297,279,408,410,564,516,509,509,507,497,462,462,603,576,506,457,439,410,2202,1750]} 1. d4 {[%emt 0:00:03]} Nf6 {[%emt 0:00:43]} 2. c4 {[%emt 0:00:25]} g6 {[%emt 0:00:12]} 3. Nc3 {[%emt 0:01:44]} Bg7 {[%emt 0:00:36]} 4. e4 {[%emt 0:01:01]} d6 {[%emt 0:00:03]} 5. Nf3 {[%emt 0:01:13]} O-O {[%emt 0:00:08]} 6. Be2 {[%emt 0:00:50]} e5 {[%emt 0:00:16]} 7. O-O {[%emt 0:01:00]} Nc6 {[%emt 0:03:33]} 8. d5 {[%emt 0:09:45]} Ne7 {[%emt 0:00:08]} 9. Be3 {[%emt 0:05:58]} Ng4 {[%emt 0:04:17]} 10. Bg5 {[%emt 0:02:52][%cal Be3g5,Bg5h4,Bh4g3][%mdl 32]} f6 {[%emt 0:03:16]} 11. Bh4 {[%emt 0:01:59]} Nh6 {[%emt 0:13:07][%cal Bg4h6,Bh6f5,Bf5e3][%mdl 32] E97: King's Indian: Classical Main Line (6...e5 7 0-0 Nc6): 8 Be3 and 8 d5 Ne7, not 9 Ne1.} 12. Ne1 {[%emt 0:01:16]} g5 {[%emt 0:01:23]} 13. Bg3 {[%emt 0:00:10]} Ng6 {[%emt 0:01:47] The position is equal.} 14. Nc2 {[%emt 0:01:08]} f5 {[%emt 0:12:51]} 15. exf5 {[%emt 0:02:48]} Nxf5 {[%emt 0:00:15]} 16. Bg4 {[%emt 0:02:13] [#]} Bd7 $146 {[%emt 0:03:20]} (16... Nf4 {looks sharper.} 17. Ne4 Qe8 18. Nxg5 Qg6) ({Predecessor:} 16... Nf4 17. Ne3 Nd4 18. Bxc8 Rxc8 19. Nc2 c5 20. dxc6 bxc6 21. Nxd4 exd4 22. Ne4 h6 23. Bxf4 Rxf4 {½-½ (44) Rodgaard,J (2352)-Jere,D (2267) Khanty-Mansiysk 2010}) 17. Ne3 {[%emt 0:03:56]} Nxe3 {[%emt 0:11:16]} 18. fxe3 {[%emt 0:00:10]} Rxf1+ {[%emt 0:00:05]} 19. Kxf1 {[%emt 0:00:09]} e4 {[%emt 0:00:09]} 20. Nxe4 {[%emt 0:02:07]} Qe7 {[%emt 0:14:42]} 21. Nf2 {[%emt 0:07:27] Active counter play!} Bxb2 {[%emt 0:16:07]} 22. Rb1 {[%emt 0:02:11]} Be5 {[%emt 0:00:35]} 23. Rxb7 {[%emt 0:05:59]} Bxg3 {[%emt 0:00:15]} 24. hxg3 {[%emt 0:00:45] Black must now prevent Qd4.} Rf8 {[%emt 0:02:20][%cal Oe7f6] [#] And now ...Qf6! would win.} 25. Bxd7 {[%emt 0:01:58]} Qxd7 {[%emt 0:00:20]} 26. Kg1 {[%emt 0:01:50]} Ne5 {[%emt 0:01:50]} 27. Qc2 {[%emt 0:05:12]} (27. Qd4 $16) 27... a5 {[%emt 0:03:56]} (27... h5 $11) 28. a4 {[%emt 0:05:57]} (28. e4 $16) 28... Qf7 $2 {[%emt 0:01:04][%mdl 8192] [#] Loses the game.} (28... Qc8 $11 29. Rb1 Ng4 30. Nxg4 Qxg4) 29. c5 $1 $18 {Threatens to win with cxd6.} dxc5 {[%emt 0:05:11]} (29... Qg6 $142 30. Qxg6+ hxg6 31. Rxc7 dxc5) 30. d6 $1 {[%emt 0:02:06]} Rc8 {[%emt 0:00:53]} 31. Qxc5 {[%emt 0:06:02]} Qxf2+ {[%emt 0:00:45]} 32. Kxf2 {[%emt 0:00:08]} Nd3+ {[%emt 0:00:02]} 33. Ke2 {[%emt 0:00:13] Intending Qxc7 and mate.} Nxc5 {[%emt 0:00:02]} 34. Rxc7 {[%emt 0:00:07]} Ra8 {[%emt 0:01:29]} 35. Rxc5 {[%emt 0:00:08] White wants to mate with d7.} Kf7 {[%emt 0:00:05]} 36. d7 {[%emt 0:05:45] Rc8 would kill now.} Rd8 {[%emt 0:00:16]} 37. Rd5 {[%emt 0:00:15]} Ke7 {[%emt 0:00:26]} (37... Ke6 $142 38. Rxa5 Rxd7 39. Rxg5 Kd6) 38. Kd3 {[%emt 0:00:38] Weighted Error Value: White=0.16 (very precise) /Black=0.48} 1-0

[Event "Mitropa Cup Open 2022"]
[Site "Corte"]
[Date "2022.05.08"]
[Round "9.7"]
[White "Nemeth, Miklos"]
[Black "Lodici, Lorenzo"]
[Result "1-0"]
[ECO "B53"]
[WhiteElo "2446"]
[BlackElo "2549"]
[Annotator "TA"]
[PlyCount "85"]
[EventDate "2022.04.30"]
[EventType "team-tourn"]
[EventCountry "FRA"]
[SourceTitle "playchess.com"]
[Source "ChessBase"]
[SourceQuality "1"]
[WhiteTeam "Hungary"]
[BlackTeam "Italy"]
[WhiteTeamCountry "HUN"]
[BlackTeamCountry "ITA"]
[TimeControl "40/5400+30:1800+30"]

{[%evp 14,85,12,7,13,9,14,14,28,14,22,18,30,0,0,0,0,9,2,0,0,0,0,0,0,0,0,0,10,-8,-8,-33,0,8,8,9,67,0,0,0,61,13,106,95,207,204,210,189,199,191,242,183,229,226,277,282,372,372,399,365,396,386,354,271,306,210,286,280,1902,1959,29980,29981,29983,29976]} 1. e4 {[%emt 0:00:03]} c5 {[%emt 0:01:29]} 2. Nf3 {[%emt 0:00:03]} d6 {[%emt 0:00:02]} 3. d4 {[%emt 0:00:51]} cxd4 {[%emt 0:00:05]} 4. Qxd4 {[%emt 0:00:31]} Nc6 {[%emt 0:00:03]} 5. Bb5 {[%emt 0:00:11]} a6 {[%emt 0:04:23]} 6. Bxc6+ {[%emt 0:00:08]} bxc6 {[%emt 0:00:03]} 7. O-O {[%emt 0:02:10]} e5 {[%emt 0:00:31]} 8. Qd3 {[%emt 0:01:44]} Nf6 {[%emt 0:00:31] 8...Ne7 is setting a new trend. B51: Sicilian: Moscow Variation (3 Bb5+) without 3...Bd7.} 9. c4 {[%emt 0:00:25]} Be7 {[%emt 0:06:30]} 10. Nc3 {[%emt 0:08:04]} Nd7 {[%emt 0:08:47] The position is equal.} 11. Be3 {[%emt 0:01:40] [#]} a5 $146 {[%emt 0:00:05]} ({Predecessor:} 11... O-O 12. b4 Nb6 13. a4 Be6 14. Nd2 f5 15. b5 fxe4 16. Qxe4 axb5 17. axb5 c5 {0-1 (86) Keller,D (2420)-Nemet,I (2420) Switzerland 1989}) 12. b3 {[%emt 0:02:03]} Nf8 {[%emt 0:09:37]} 13. Rfd1 {[%emt 0:06:13][%cal Oc4c5]} Bg4 {[%emt 0:14:49]} 14. c5 {[%emt 0:01:12][%cal Rc5d6]} Bxf3 {[%emt 0:00:15]} 15. gxf3 {[%emt 0:00:07][%cal Rc5d6]} dxc5 {[%emt 0:00:06]} 16. Qxd8+ {[%emt 0:01:16]} Rxd8 {[%emt 0:00:19]} 17. Rxd8+ {[%emt 0:00:06]} Kxd8 {[%emt 0:00:07]} 18. Na4 {[%emt 0:00:06]} Ne6 {[%emt 0:17:40]} 19. Bd2 {[%emt 0:04:17]} h5 {[%emt 0:06:48]} 20. Bxa5+ {[%emt 0:00:40]} Kc8 {[%emt 0:00:01]} 21. Bd2 {[%emt 0:06:27]} h4 {[%emt 0:01:53]} 22. Be3 {[%emt 0:02:03]} Rd8 {[%emt 0:02:43]} 23. Kg2 {[%emt 0:11:36]} Kb7 {[%emt 0:07:04]} 24. Rc1 {[%emt 0:09:03]} Rd3 {[%emt 0:00:14]} ({Better is} 24... Kc7 $11) 25. Kf1 {[%emt 0:02:36]} (25. Nxc5+ Bxc5 26. Bxc5 Rd2 $11) (25. Bxc5 Bg5 26. Be3 Bxe3 27. fxe3 Rd2+ 28. Kh3 Rxa2 $11) (25. Nb2 $14 Rd8 26. Kh3) 25... h3 $11 {[%emt 0:02:54]} 26. Ke1 {[%emt 0:04:23]} Ka6 {[%emt 0:02:51]} (26... Kc7 $11) 27. Rc4 {[%emt 0:18:59]} (27. Bxc5 $14 {might be stronger.} Bh4 28. Nb2 Nxc5 29. Rxc5 Rxf3 30. Rxc6+ Kb5 31. Rc2) 27... Kb5 {[%emt 0:01:30] [#]} (27... Kb7 $11 {keeps the balance.}) 28. Nb2 $1 $16 {[%emt 0:03:27] Black is now going downhill.} Rd8 {[%emt 0:00:13] [#]} (28... Rd7 $16 {was called for.}) 29. Ra4 $1 $18 {[%emt 0:00:16]} Kb6 {[%emt 0:06:06]} 30. Nc4+ {[%emt 0:00:29]} Kb7 {[%emt 0:00:01]} 31. Nxe5 {[%emt 0:00:49]} Rf8 {[%emt 0:01:27]} (31... f6 $142) 32. Nd3 {[%emt 0:01:49]} Bd6 {[%emt 0:05:11]} (32... g5 {might work better.} 33. Kd2 Rd8) 33. e5 {[%emt 0:01:19]} Bc7 {[%emt 0:00:01]} 34. f4 {[%emt 0:00:50][%cal Bf3f4,Bf4f5][%mdl 32] Hoping for f5.} (34. Nxc5+ Nxc5 35. Bxc5 Rg8 $18) 34... Bb6 {[%emt 0:01:54]} 35. f5 {[%emt 0:00:46]} Nc7 {[%emt 0:01:02]} 36. Bxc5 {[%emt 0:01:07]} Rd8 {[%emt 0:00:26]} 37. Bxb6 {[%emt 0:00:19]} Kxb6 {[%emt 0:00:02][%mdl 4096] Endgame KRN-KRN} 38. Nf4 {[%emt 0:01:48]} Nb5 {[%emt 0:00:31] Threatens to win with ...Nc3.} 39. Rc4 {[%emt 0:00:32] Prevents Nc3.} (39. Nxh3 Nc3 40. Rb4+ Ka5 41. Ra4+ Nxa4 42. bxa4 c5 $17) 39... Nd4 {[%emt 0:00:24]} 40. e6 {[%emt 0:01:19][%cal Oc4d4,Be5e6,Be6f7][%mdl 32] Black must now prevent Rxd4!} ({Don't take} 40. Nxh3 $6 Nf3+ 41. Ke2 Nxe5 $18) 40... g5 $2 {[%emt 0:01:16] [#]} (40... Nxf5 41. exf7 Rf8 42. Rb4+ (42. Nxh3 Rxf7 43. Ng5 Ra7 $18) 42... Ka5 43. Ra4+ Kb6 44. Rb4+ (44. Nxh3 Rxf7 45. Ng5 Rf8 $18) 44... Ka5 45. Ra4+ Kb5 46. Nxh3 (46. Ra7 Nd6 $18) 46... Rxf7) 41. Rxd4 $1 {[%emt 0:31:34]} Rxd4 {[%emt 0:30:11] [#]} (41... Re8 42. Nxh3) 42. exf7 $1 {[%emt 0:00:04]} Rd8 {[%emt 0:00:21]} (42... Rxf4 43. f8=Q) 43. Ne6 {[%emt 0:00:05] Weighted Error Value: White=0.12 (very precise) /Black=0.42} 1-0

[Event "Mitropa Cup Open 2022"]
[Site "Corte"]
[Date "2022.05.08"]
[Round "9.8"]
[White "Di Benedetto, Edoardo"]
[Black "Csiki, Endre"]
[Result "1/2-1/2"]
[ECO "D30"]
[WhiteElo "2401"]
[BlackElo "2399"]
[Annotator "TA"]
[PlyCount "74"]
[EventDate "2022.04.30"]
[EventType "team-tourn"]
[EventCountry "FRA"]
[SourceTitle "playchess.com"]
[Source "ChessBase"]
[SourceQuality "1"]
[WhiteTeam "Italy"]
[BlackTeam "Hungary"]
[WhiteTeamCountry "ITA"]
[BlackTeamCountry "HUN"]
[TimeControl "40/5400+30:1800+30"]

{[%evp 20,74,20,6,6,3,13,6,16,14,8,12,8,0,0,0,0,0,0,0,0,0,7,9,9,12,21,17,13,7,7,4,9,-7,-8,-9,-6,-9,0,0,0,0,0,0,0,0,0,0,0,0,0,0,0,0,0,0,0]} 1. d4 {[%emt 0:03:08]} d5 {[%emt 0:00:04]} 2. c4 {[%emt 0:00:21]} e6 {[%emt 0:00:04]} 3. Nf3 {[%emt 0:00:46]} Nf6 {[%emt 0:00:05]} 4. g3 {[%emt 0:00:11]} Bb4+ {[%emt 0:00:05]} 5. Bd2 {[%emt 0:00:04]} Bd6 {[%emt 0:00:05]} 6. Bg2 {[%emt 0:00:54]} c6 {[%emt 0:00:03]} 7. O-O {[%emt 0:00:35]} O-O {[%emt 0:00:16]} 8. Qc2 {[%emt 0:02:14]} Nbd7 {[%emt 0:00:05]} 9. Bg5 {[%emt 0:10:34]} h6 {[%emt 0:00:06]} 10. Bxf6 {[%emt 0:00:56]} Nxf6 {[%emt 0:00:07]} 11. Nbd2 {[%emt 0:01:08] The position is equal.} b6 {[%emt 0:00:05] E01: Catalan: Early deviations.} 12. e4 {[%emt 0:00:43]} dxe4 {[%emt 0:00:05]} 13. Nxe4 {[%emt 0:00:05]} Nxe4 {[%emt 0:00:04]} 14. Qxe4 {[%emt 0:00:06]} Ba6 {[%emt 0:00:02]} 15. Ne5 {[%emt 0:18:03]} Qc7 {[%emt 0:00:05]} 16. Qxc6 {[%emt 0:02:03]} (16. Nxc6 {looks sharper.} Bxc4 17. Rfc1 Bd5 18. Qg4) 16... Bxe5 {[%emt 0:00:05]} 17. dxe5 {[%emt 0:00:06]} Qxc6 {[%emt 0:00:02]} 18. Bxc6 {[%emt 0:00:33]} Rac8 {[%emt 0:00:02]} 19. Bb5 {[%emt 0:12:12]} Bxb5 {[%emt 0:00:07]} 20. cxb5 $11 {[%emt 0:00:06][%mdl 4096] [#] Endgame KRR-KRR} Rc5 $146 {[%emt 0:01:38][%csl LRb5,LRe5]} ({Predecessor:} 20... Rc2 21. Rab1 Rfc8 22. a4 g5 23. b3 {½-½ (23) Jones,B (2290)-Dean,P (2307) ICCF email 2017}) 21. a4 {[%emt 0:01:25]} Rxe5 {[%emt 0:00:05]} 22. Rfd1 {[%emt 0:04:10]} a6 {[%emt 0:03:31]} 23. bxa6 {[%emt 0:00:54]} Ra8 {[%emt 0:00:05]} 24. Rac1 {[%emt 0:06:08]} Rxa6 {[%emt 0:00:26]} 25. Rc8+ {[%emt 0:01:29]} Kh7 {[%emt 0:00:07]} 26. Rb8 {[%emt 0:03:52]} Rxa4 {[%emt 0:00:25]} 27. Rxb6 {[%emt 0:00:06]} Rc4 {[%emt 0:02:43]} 28. Rd2 {[%emt 0:05:42] Against Rc2} Rec5 {[%emt 0:00:23]} 29. b4 {[%emt 0:04:59]} Rc2 {[%emt 0:03:59]} 30. Rxc2 {[%emt 0:00:35]} Rxc2 {[%emt 0:00:05] KR-KR} 31. Rb7 {[%emt 0:00:10]} Rb2 {[%emt 0:00:07]} 32. h4 {[%emt 0:03:09]} h5 {[%emt 0:00:06]} 33. b5 {[%emt 0:00:44]} Kg6 {[%emt 0:00:04]} 34. b6 {[%emt 0:00:17]} f6 {[%emt 0:01:01]} 35. Rb8 {[%emt 0:00:38]} Kf5 {[%emt 0:01:42]} 36. Rg8 {[%emt 0:08:07]} Kg6 {[%emt 0:00:06]} 37. Rb8 {[%emt 0:00:09]} Kf5 {[%emt 0:00:03] An even fight not without its subleties.  Weighted Error Value: White=0.02 (flawless) /Black=0.02 (flawless)} 1/2-1/2